[Event "African Games-chT 2019"]
[Site "Casablanca"]
[Date "2019.08.24"]
[Round "1"]
[White "Wafa, Shrook"]
[Black "Haile, Lidet Abate"]
[Result "1-0"]
[ECO "C60"]
[WhiteElo "2183"]
[BlackElo "1593"]
[Annotator "NA"]
[PlyCount "75"]
[EventDate "2019.08.24"]
[EventType "team-tourn"]
[EventCountry "MAR"]
[SourceTitle "playchess.com"]
[Source "ChessBase"]
[SourceQuality "1"]
[WhiteTeam "Egypt"]
[BlackTeam "Ethiopia"]
[WhiteTeamCountry "EGY"]
[BlackTeamCountry "ETH"]
[TimeControl "900+10"]

1. e4 {[%emt 0:00:00]} e5 {[%emt 0:00:00]} 2. Nf3 {[%emt 0:00:00]} Nc6 {[%emt 0:00:00]} 3. Bb5 {[%emt 0:00:04]} Nge7 {[%emt 0:00:11]} 4. O-O {[%emt 0:00:31]} g6 {[%emt 0:00:05]} 5. c3 {[%emt 0:00:10]} a6 {[%emt 0:00:08]} 6. Ba4 {[%emt 0:00:06]} b5 {[%emt 0:00:06]} 7. Bb3 {[%emt 0:00:07]} Bg7 {[%emt 0:00:14]} 8. d4 {[%emt 0:00:23]} O-O {[%emt 0:00:33]} 9. d5 {[%emt 0:02:53]} Na5 {[%emt 0:00:23]} 10. d6 {[%emt 0:00:43]} cxd6 {[%emt 0:01:01]} 11. Qxd6 {[%emt 0:00:25]} Nxb3 {[%emt 0:00:50]} 12. axb3 {[%emt 0:00:12]} Nc6 {[%emt 0:00:11]} 13. Na3 {[%emt 0:02:32]} Rb8 {[%emt 0:01:42]} 14. Nc2 {[%emt 0:01:36]} Qf6 {[%emt 0:00:35]} 15. Qd3 {[%emt 0:00:54]} Re8 {[%emt 0:00:51]} 16. Ne3 {[%emt 0:01:17]} d6 {[%emt 0:02:02]} 17. Nd5 {[%emt 0:01:04]} Qd8 {[%emt 0:00:16]} 18. Rd1 {[%emt 0:01:04]} Bb7 {[%emt 0:02:10]} 19. Be3 {[%emt 0:00:20]} Bf8 {[%emt 0:01:16]} 20. Bg5 {[%emt 0:00:30]} Be7 {[%emt 0:00:55]} 21. Bxe7 {[%emt 0:00:15]} Nxe7 {[%emt 0:00:05]} 22. Nf6+ {[%emt 0:00:05]} Kg7 {[%emt 0:00:35]} 23. Nxe8+ {[%emt 0:00:09]} Qxe8 {[%emt 0:00:03]} 24. Qxd6 {[%emt 0:00:06]} Nc6 {[%emt 0:00:50]} 25. Qc7 {[%emt 0:00:40]} Qe6 {[%emt 0:00:56]} 26. Rd6 {[%emt 0:00:28]} Qc8 {[%emt 0:00:39]} 27. Qxc8 {[%emt 0:00:09]} Rxc8 {[%emt 0:00:02]} 28. Rd7 {[%emt 0:00:08]} Rb8 {[%emt 0:00:27]} 29. Ng5 {[%emt 0:00:11]} Nd8 {[%emt 0:00:20]} 30. Rad1 {[%emt 0:00:16]} h6 {[%emt 0:00:06]} 31. Rxd8 {[%emt 0:00:11]} Rxd8 {[%emt 0:00:06]} 32. Rxd8 {[%emt 0:00:09]} hxg5 {[%emt 0:00:03]} 33. f3 {[%emt 0:00:04]} Kf6 {[%emt 0:00:14]} 34. Rd7 {[%emt 0:00:12]} Bc8 {[%emt 0:00:02]} 35. Rc7 {[%emt 0:00:04]} Be6 {[%emt 0:00:09]} 36. b4 {[%emt 0:00:05]} Kg7 {[%emt 0:00:07]} 37. Rc6 {[%emt 0:00:05]} Bc8 {[%emt 0:00:03]} 38. Rxc8 {[%emt 0:00:04]} 1-0

[Event "African Games-chT 2019"]
[Site "Casablanca"]
[Date "2019.08.24"]
[Round "1"]
[White "Beukes, Dante M"]
[Black "Hamdouchi, Hicham"]
[Result "0-1"]
[ECO "B31"]
[WhiteElo "2130"]
[BlackElo "2562"]
[Annotator "ChessBase"]
[PlyCount "102"]
[EventDate "2019.08.24"]
[EventType "team-tourn"]
[EventCountry "MAR"]
[SourceTitle "playchess.com"]
[Source "ChessBase"]
[SourceQuality "1"]
[WhiteTeam "Namibia"]
[BlackTeam "Morocco"]
[WhiteTeamCountry "NAM"]
[BlackTeamCountry "MAR"]
[TimeControl "900+10"]

1. e4 {[%emt 0:00:01]} c5 {[%emt 0:00:00]} 2. Nf3 {[%emt 0:00:02]} Nc6 {[%emt 0:00:00]} 3. Bb5 {[%emt 0:00:03]} g6 {[%emt 0:00:27]} 4. Bxc6 {[%emt 0:00:02]} bxc6 {[%emt 0:00:02]} 5. O-O {[%emt 0:00:04]} Bg7 {[%emt 0:00:02]} 6. Re1 {[%emt 0:00:06]} Nh6 {[%emt 0:00:12]} 7. c3 {[%emt 0:00:18]} O-O {[%emt 0:00:12]} 8. d4 {[%emt 0:00:02]} cxd4 {[%emt 0:00:44]} 9. cxd4 {[%emt 0:00:06]} f6 {[%emt 0:00:31]} 10. Nc3 {[%emt 0:01:28]} Nf7 {[%emt 0:00:04]} 11. Bf4 {[%emt 0:00:57]} d6 {[%emt 0:00:21]} 12. h3 {[%emt 0:00:11]} Rb8 {[%emt 0:00:59]} 13. Qd2 {[%emt 0:00:14]} g5 {[%emt 0:00:24]} 14. Bh2 {[%emt 0:01:49]} Kh8 {[%emt 0:00:56]} 15. Rad1 {[%emt 0:00:23]} g4 {[%emt 0:00:15]} 16. hxg4 {[%emt 0:01:38]} Bxg4 {[%emt 0:00:02]} 17. Qc1 {[%emt 0:01:45]} Bxf3 {[%emt 0:01:16]} 18. gxf3 {[%emt 0:00:03]} Rg8 {[%emt 0:00:01]} 19. Kh1 {[%emt 0:01:51]} Qd7 {[%emt 0:00:16]} 20. Rg1 {[%emt 0:01:16]} Bh6 {[%emt 0:00:05]} 21. f4 {[%emt 0:00:59]} Qh3 {[%emt 0:01:18]} 22. Qe3 {[%emt 0:01:10]} Qxe3 {[%emt 0:01:20]} 23. Rxg8+ {[%emt 0:00:31]} Kxg8 {[%emt 0:00:01]} 24. fxe3 {[%emt 0:00:21]} Rxb2 {[%emt 0:00:02]} 25. Rg1+ {[%emt 0:00:22]} Kf8 {[%emt 0:00:06]} 26. Rg2 {[%emt 0:00:15]} Rb4 {[%emt 0:00:43]} 27. Rd2 {[%emt 0:00:55]} Rc4 {[%emt 0:00:39]} 28. Ne2 {[%emt 0:00:51]} d5 {[%emt 0:01:22]} 29. Ng3 {[%emt 0:00:37]} Nd6 {[%emt 0:00:28]} 30. e5 {[%emt 0:00:32]} fxe5 {[%emt 0:01:26]} 31. dxe5 {[%emt 0:00:05]} Ne4 {[%emt 0:00:02]} 32. Nxe4 {[%emt 0:00:02]} Rxe4 {[%emt 0:00:03]} 33. Rc2 {[%emt 0:00:35]} Rc4 {[%emt 0:00:02]} 34. Rb2 {[%emt 0:00:03]} Kf7 {[%emt 0:00:20]} 35. Kg2 {[%emt 0:00:07]} Ke6 {[%emt 0:00:10]} 36. Kf3 {[%emt 0:00:01]} Rc3 {[%emt 0:00:01]} 37. Bg1 {[%emt 0:00:25]} Bf8 {[%emt 0:00:24]} 38. Rb8 {[%emt 0:00:11]} Bg7 {[%emt 0:00:01]} 39. Rb2 {[%emt 0:00:08]} c5 {[%emt 0:00:39]} 40. Rg2 {[%emt 0:00:25]} Bf8 {[%emt 0:00:02]} 41. Rd2 {[%emt 0:00:19]} Ra3 {[%emt 0:00:14]} 42. Rh2 {[%emt 0:00:18]} h6 {[%emt 0:00:02]} 43. Rg2 {[%emt 0:00:01]} c4 {[%emt 0:00:24]} 44. Rc2 {[%emt 0:00:15]} Kf5 {[%emt 0:00:49]} 45. Bf2 {[%emt 0:00:31]} e6 {[%emt 0:00:08]} 46. Bg1 {[%emt 0:00:01]} Bc5 {[%emt 0:00:12]} 47. Bf2 {[%emt 0:00:09]} h5 {[%emt 0:00:51]} 48. Bg1 {[%emt 0:00:04]} Bxe3 {[%emt 0:00:07]} 49. Bxe3 {[%emt 0:00:04]} d4 {[%emt 0:00:01]} 50. Rxc4 {[%emt 0:00:14]} Rxe3+ {[%emt 0:00:02]} 51. Kf2 {[%emt 0:00:01]} Re4 {[%emt 0:00:09]} 0-1

[Event "African Games-chT 2019"]
[Site "Casablanca"]
[Date "2019.08.24"]
[Round "1"]
[White "Ebosse, Kingue Victor Patric"]
[Black "Arab, Adlane"]
[Result "0-1"]
[ECO "B33"]
[WhiteElo "2055"]
[BlackElo "2485"]
[Annotator "ChessBase"]
[PlyCount "90"]
[EventDate "2019.08.24"]
[EventType "team-tourn"]
[EventCountry "MAR"]
[SourceTitle "playchess.com"]
[Source "ChessBase"]
[SourceQuality "1"]
[WhiteTeam "CMR"]
[BlackTeam "Algeria"]
[BlackTeamCountry "ALG"]
[TimeControl "900+10"]

1. e4 {[%emt 0:00:00]} c5 {[%emt 0:00:00]} 2. Nf3 {[%emt 0:00:00]} Nc6 {[%emt 0:00:00]} 3. d4 {[%emt 0:00:00]} cxd4 {[%emt 0:00:00]} 4. Nxd4 {[%emt 0:00:00]} Qb6 {[%emt 0:00:05]} 5. Nb3 {[%emt 0:00:03]} Nf6 {[%emt 0:00:03]} 6. Nc3 {[%emt 0:00:05]} e6 {[%emt 0:00:03]} 7. Be2 {[%emt 0:00:04]} Bb4 {[%emt 0:00:05]} 8. O-O {[%emt 0:00:24]} Bxc3 {[%emt 0:00:31]} 9. bxc3 {[%emt 0:00:02]} Nxe4 {[%emt 0:00:06]} 10. Bd3 {[%emt 0:00:04]} Nf6 {[%emt 0:00:40]} 11. Bg5 {[%emt 0:00:31]} Ne5 {[%emt 0:00:31]} 12. Be2 {[%emt 0:00:15]} d6 {[%emt 0:00:11]} 13. Rb1 {[%emt 0:00:29]} Qc7 {[%emt 0:00:06]} 14. Qd4 {[%emt 0:00:27]} Ned7 {[%emt 0:01:15]} 15. Rbd1 {[%emt 0:00:14]} d5 {[%emt 0:00:05]} 16. Rfe1 {[%emt 0:00:32]} O-O {[%emt 0:00:19]} 17. Rd3 {[%emt 0:00:58]} Ne4 {[%emt 0:00:25]} 18. Bc1 {[%emt 0:00:37]} Ndf6 {[%emt 0:00:18]} 19. Rf3 {[%emt 0:01:00]} e5 {[%emt 0:00:15]} 20. Qd3 {[%emt 0:00:39]} Bg4 {[%emt 0:00:28]} 21. Re3 {[%emt 0:00:17]} Bf5 {[%emt 0:00:34]} 22. f3 {[%emt 0:00:27]} Ng3 {[%emt 0:00:05]} 23. Qd2 {[%emt 0:00:15]} Nxe2+ {[%emt 0:00:08]} 24. Qxe2 {[%emt 0:00:11]} Nd7 {[%emt 0:00:13]} 25. Qf2 {[%emt 0:00:59]} Rfe8 {[%emt 0:00:19]} 26. f4 {[%emt 0:00:17]} Be4 {[%emt 0:00:03]} 27. Nd2 {[%emt 0:00:24]} exf4 {[%emt 0:00:13]} 28. R3e2 {[%emt 0:00:20]} Nf6 {[%emt 0:00:13]} 29. Nxe4 {[%emt 0:00:13]} Rxe4 {[%emt 0:00:07]} 30. Rxe4 {[%emt 0:00:20]} Nxe4 {[%emt 0:00:02]} 31. Qxf4 {[%emt 0:00:08]} Qxc3 {[%emt 0:00:51]} 32. Rf1 {[%emt 0:00:12]} f6 {[%emt 0:00:21]} 33. Qf5 {[%emt 0:00:22]} Qd4+ {[%emt 0:00:04]} 34. Kh1 {[%emt 0:00:03]} Re8 {[%emt 0:00:09]} 35. g3 {[%emt 0:00:30]} Qc4 {[%emt 0:00:42]} 36. Rd1 {[%emt 0:00:23]} d4 {[%emt 0:00:23]} 37. Qd7 {[%emt 0:00:34]} Qc8 {[%emt 0:00:47]} 38. Qd5+ {[%emt 0:00:22]} Kh8 {[%emt 0:00:11]} 39. Qxd4 {[%emt 0:00:03]} Qxc2 {[%emt 0:00:06]} 40. Rf1 {[%emt 0:01:24]} Qxa2 {[%emt 0:00:16]} 41. Qd7 {[%emt 0:00:34]} Qe6 {[%emt 0:00:55]} 42. Qxb7 {[%emt 0:00:10]} a6 {[%emt 0:00:06]} 43. Rf4 {[%emt 0:02:14]} Nxg3+ {[%emt 0:00:31]} 44. hxg3 {[%emt 0:00:11]} Qh3+ {[%emt 0:00:02]} 45. Kg1 {[%emt 0:00:15]} Re1+ {[%emt 0:00:02]} 0-1

[Event "African Games-chT 2019"]
[Site "Casablanca"]
[Date "2019.08.24"]
[Round "1"]
[White "Mwango, Lorita"]
[Black "Essoo, Uvika"]
[Result "1-0"]
[ECO "D02"]
[WhiteElo "1947"]
[BlackElo "1187"]
[Annotator "NA"]
[PlyCount "53"]
[EventDate "2019.08.24"]
[EventType "team-tourn"]
[EventCountry "MAR"]
[SourceTitle "playchess.com"]
[Source "ChessBase"]
[SourceQuality "1"]
[WhiteTeam "Zambia"]
[BlackTeam "Mauritius"]
[WhiteTeamCountry "ZAM"]
[BlackTeamCountry "MRI"]
[TimeControl "900+10"]

1. d4 {[%emt 0:00:00]} d5 {[%emt 0:00:00]} 2. Nf3 {[%emt 0:00:00]} Nf6 {[%emt 0:00:00]} 3. Bf4 {[%emt 0:00:00]} e6 {[%emt 0:00:14]} 4. e3 {[%emt 0:00:01]} Be7 {[%emt 0:00:09]} 5. Be2 {[%emt 0:00:03]} O-O {[%emt 0:00:16]} 6. O-O {[%emt 0:00:04]} Nbd7 {[%emt 0:00:12]} 7. Nbd2 {[%emt 0:00:40]} b6 {[%emt 0:00:43]} 8. c4 {[%emt 0:00:07]} c5 {[%emt 0:00:25]} 9. h3 {[%emt 0:00:16]} Bb7 {[%emt 0:00:28]} 10. Rc1 {[%emt 0:00:14]} Rc8 {[%emt 0:01:50]} 11. b3 {[%emt 0:00:58]} Ne4 {[%emt 0:01:28]} 12. Nxe4 {[%emt 0:02:00]} dxe4 {[%emt 0:00:18]} 13. Ne5 {[%emt 0:00:15]} Nxe5 {[%emt 0:00:25]} 14. Bxe5 {[%emt 0:00:06]} Bd6 {[%emt 0:00:26]} 15. Bxd6 {[%emt 0:01:57]} Qxd6 {[%emt 0:00:13]} 16. dxc5 {[%emt 0:00:08]} Qxc5 {[%emt 0:01:25]} 17. Qc2 {[%emt 0:00:06]} Rfd8 {[%emt 0:01:22]} 18. Rfd1 {[%emt 0:00:06]} Qe5 {[%emt 0:01:16]} 19. Rd2 {[%emt 0:01:31]} Qc7 {[%emt 0:01:21]} 20. Rcd1 {[%emt 0:00:09]} Rxd2 {[%emt 0:00:30]} 21. Qxd2 {[%emt 0:00:08]} f5 {[%emt 0:01:53]} 22. Qd7 {[%emt 0:00:36]} Bc6 {[%emt 0:01:18]} 23. Qxe6+ {[%emt 0:00:28]} Kh8 {[%emt 0:01:30]} 24. Qxf5 {[%emt 0:00:09]} g6 {[%emt 0:00:31]} 25. Qf6+ {[%emt 0:00:27]} Kg8 {[%emt 0:00:06]} 26. Bg4 {[%emt 0:00:11]} Rf8 {[%emt 0:00:08]} 27. Be6+ {[%emt 0:00:14]} 1-0

[Event "African Games-chT 2019"]
[Site "Casablanca"]
[Date "2019.08.24"]
[Round "1"]
[White "Nassr, Lina"]
[Black "Magne, Kouokam Sylviane"]
[Result "1-0"]
[ECO "D02"]
[WhiteElo "1938"]
[BlackElo "1317"]
[Annotator "NA"]
[PlyCount "99"]
[EventDate "2019.08.24"]
[EventType "team-tourn"]
[EventCountry "MAR"]
[SourceTitle "playchess.com"]
[Source "ChessBase"]
[SourceQuality "1"]
[WhiteTeam "Algeria"]
[BlackTeam "CMR"]
[WhiteTeamCountry "ALG"]
[TimeControl "900+10"]

1. d4 {[%emt 0:00:00]} d5 {[%emt 0:00:00]} 2. Nf3 {[%emt 0:00:00]} g6 {[%emt 0:00:00]} 3. e3 {[%emt 0:00:00]} Bg7 {[%emt 0:00:00]} 4. b3 {[%emt 0:00:00]} a6 {[%emt 0:00:00]} 5. Bb2 {[%emt 0:00:01]} e6 {[%emt 0:00:03]} 6. Be2 {[%emt 0:00:07]} Nc6 {[%emt 0:00:02]} 7. c4 {[%emt 0:00:08]} b6 {[%emt 0:00:17]} 8. Nc3 {[%emt 0:00:20]} Nge7 {[%emt 0:00:09]} 9. O-O {[%emt 0:00:04]} O-O {[%emt 0:00:02]} 10. Qc2 {[%emt 0:00:17]} Nf5 {[%emt 0:00:18]} 11. cxd5 {[%emt 0:01:49]} exd5 {[%emt 0:00:26]} 12. a3 {[%emt 0:00:57]} Re8 {[%emt 0:00:52]} 13. Bd3 {[%emt 0:00:33]} Qd6 {[%emt 0:02:05]} 14. Rac1 {[%emt 0:01:02]} Nce7 {[%emt 0:00:12]} 15. Ne2 {[%emt 0:00:37]} Ra7 {[%emt 0:00:33]} 16. b4 {[%emt 0:01:42]} Bd7 {[%emt 0:00:20]} 17. Ne5 {[%emt 0:01:18]} Be6 {[%emt 0:01:11]} 18. Qa4 {[%emt 0:00:32]} Rc8 {[%emt 0:00:15]} 19. b5 {[%emt 0:00:57]} a5 {[%emt 0:00:12]} 20. Rc2 {[%emt 0:00:37]} f6 {[%emt 0:00:27]} 21. Nc6 {[%emt 0:00:22]} Nxc6 {[%emt 0:00:04]} 22. Rxc6 {[%emt 0:00:02]} Qe7 {[%emt 0:00:07]} 23. Nf4 {[%emt 0:00:23]} Bd7 {[%emt 0:00:02]} 24. Nxd5 {[%emt 0:00:11]} Qd8 {[%emt 0:00:22]} 25. Rc2 {[%emt 0:00:32]} Be6 {[%emt 0:00:32]} 26. Nf4 {[%emt 0:00:04]} Bd7 {[%emt 0:00:14]} 27. Rfc1 {[%emt 0:00:43]} Qe8 {[%emt 0:00:37]} 28. Qb3+ {[%emt 0:00:32]} Kh8 {[%emt 0:00:06]} 29. a4 {[%emt 0:00:01]} c6 {[%emt 0:00:40]} 30. bxc6 {[%emt 0:00:20]} Rxc6 {[%emt 0:00:03]} 31. Bb5 {[%emt 0:01:52]} Rxc2 {[%emt 0:00:48]} 32. Qxc2 {[%emt 0:00:01]} Bxb5 {[%emt 0:00:34]} 33. axb5 {[%emt 0:00:02]} Ra8 {[%emt 0:00:01]} 34. Qc6 {[%emt 0:00:36]} g5 {[%emt 0:00:30]} 35. Nd5 {[%emt 0:00:23]} Qxc6 {[%emt 0:01:59]} 36. bxc6 {[%emt 0:00:02]} b5 {[%emt 0:00:19]} 37. c7 {[%emt 0:00:04]} Nd6 {[%emt 0:00:41]} 38. Nb6 {[%emt 0:00:12]} Re8 {[%emt 0:00:32]} 39. c8=Q {[%emt 0:00:47]} Nxc8 {[%emt 0:00:03]} 40. Rxc8 {[%emt 0:00:04]} Rxc8 {[%emt 0:00:05]} 41. Nxc8 {[%emt 0:00:01]} Kg8 {[%emt 0:00:04]} 42. Ne7+ {[%emt 0:00:29]} Kf7 {[%emt 0:00:04]} 43. Nc6 {[%emt 0:00:02]} a4 {[%emt 0:00:03]} 44. Ba3 {[%emt 0:00:18]} Ke6 {[%emt 0:00:16]} 45. e4 {[%emt 0:00:38]} f5 {[%emt 0:00:40]} 46. d5+ {[%emt 0:00:19]} Kd7 {[%emt 0:00:26]} 47. e5 {[%emt 0:00:11]} Ke8 {[%emt 0:00:29]} 48. e6 {[%emt 0:00:16]} Bf8 {[%emt 0:00:04]} 49. d6 {[%emt 0:00:05]} Bg7 {[%emt 0:00:15]} 50. d7# {[%emt 0:00:03]} 1-0

[Event "African Games-chT 2019"]
[Site "Casablanca"]
[Date "2019.08.24"]
[Round "1"]
[White "Rita, Jeorciley"]
[Black "Aderito, Pedro"]
[Result "0-1"]
[ECO "D03"]
[WhiteElo "1920"]
[BlackElo "2301"]
[Annotator "NA"]
[PlyCount "64"]
[EventDate "2019.08.24"]
[EventType "team-tourn"]
[EventCountry "MAR"]
[SourceTitle "playchess.com"]
[Source "ChessBase"]
[SourceQuality "1"]
[WhiteTeam "STP"]
[BlackTeam "Angola"]
[BlackTeamCountry "ANG"]
[TimeControl "900+10"]

1. d4 {[%emt 0:00:00]} Nf6 {[%emt 0:00:00]} 2. Nf3 {[%emt 0:00:00]} g6 {[%emt 0:00:14]} 3. Bg5 {[%emt 0:00:19]} Bg7 {[%emt 0:00:05]} 4. e3 {[%emt 0:00:15]} c5 {[%emt 0:00:31]} 5. c3 {[%emt 0:00:17]} O-O {[%emt 0:00:09]} 6. Bd3 {[%emt 0:00:06]} d5 {[%emt 0:01:11]} 7. Nbd2 {[%emt 0:00:11]} b6 {[%emt 0:00:21]} 8. O-O {[%emt 0:00:28]} Bb7 {[%emt 0:00:05]} 9. Ne5 {[%emt 0:00:46]} Ne8 {[%emt 0:00:41]} 10. Ng4 {[%emt 0:00:18]} f6 {[%emt 0:01:10]} 11. Bh6 {[%emt 0:00:43]} Bxh6 {[%emt 0:00:30]} 12. Nxh6+ {[%emt 0:00:01]} Kg7 {[%emt 0:00:05]} 13. Nf5+ {[%emt 0:01:57]} gxf5 {[%emt 0:00:02]} 14. Bxf5 {[%emt 0:00:01]} Nd6 {[%emt 0:00:43]} 15. Qg4+ {[%emt 0:01:34]} Kh8 {[%emt 0:00:05]} 16. Be6 {[%emt 0:04:44]} f5 {[%emt 0:01:48]} 17. Qf3 {[%emt 0:00:10]} Ne4 {[%emt 0:00:12]} 18. Nxe4 {[%emt 0:00:50]} dxe4 {[%emt 0:00:36]} 19. Qh3 {[%emt 0:00:02]} Bc8 {[%emt 0:00:58]} 20. Bc4 {[%emt 0:00:46]} cxd4 {[%emt 0:00:34]} 21. cxd4 {[%emt 0:00:25]} Qd6 {[%emt 0:02:27]} 22. Qh5 {[%emt 0:01:01]} Ba6 {[%emt 0:01:12]} 23. Bb3 {[%emt 0:00:47]} Bxf1 {[%emt 0:00:06]} 24. Rxf1 {[%emt 0:00:01]} Nd7 {[%emt 0:00:07]} 25. f3 {[%emt 0:00:19]} Qg6 {[%emt 0:00:12]} 26. Qh4 {[%emt 0:00:26]} Nf6 {[%emt 0:00:03]} 27. Qf4 {[%emt 0:00:10]} Nh5 {[%emt 0:00:26]} 28. Qe5+ {[%emt 0:00:15]} Qg7 {[%emt 0:00:10]} 29. Qe6 {[%emt 0:00:21]} Qg5 {[%emt 0:00:32]} 30. Kf2 {[%emt 0:00:43]} f4 {[%emt 0:01:31]} 31. Bd5 {[%emt 0:00:34]} fxe3+ {[%emt 0:00:07]} 32. Ke2 {[%emt 0:00:19]} Nf4+ {[%emt 0:00:10]} 0-1

[Event "African Games-chT 2019"]
[Site "Casablanca"]
[Date "2019.08.24"]
[Round "1"]
[White "Ofowino, Toritsemuwa"]
[Black "Msukwa, Tupokiwe"]
[Result "1-0"]
[ECO "D00"]
[WhiteElo "1877"]
[BlackElo "1289"]
[Annotator "NA"]
[PlyCount "39"]
[EventDate "2019.08.24"]
[EventType "team-tourn"]
[EventCountry "MAR"]
[SourceTitle "playchess.com"]
[Source "ChessBase"]
[SourceQuality "1"]
[WhiteTeam "Nigeria"]
[BlackTeam "MAW"]
[WhiteTeamCountry "NGR"]
[TimeControl "900+10"]

1. d4 {[%emt 0:00:00]} d5 {[%emt 0:00:00]} 2. Bf4 {[%emt 0:00:02]} Nc6 {[%emt 0:00:44]} 3. e3 {[%emt 0:00:19]} a6 {[%emt 0:00:06]} 4. c4 {[%emt 0:00:30]} Nf6 {[%emt 0:00:12]} 5. Nf3 {[%emt 0:01:07]} e6 {[%emt 0:00:39]} 6. Nc3 {[%emt 0:00:08]} h6 {[%emt 0:01:56]} 7. Rc1 {[%emt 0:00:14]} Bd6 {[%emt 0:01:21]} 8. Bg3 {[%emt 0:00:06]} Bxg3 {[%emt 0:02:35]} 9. hxg3 {[%emt 0:00:02]} Bd7 {[%emt 0:00:46]} 10. a3 {[%emt 0:00:12]} Ne7 {[%emt 0:00:36]} 11. Ne5 {[%emt 0:00:39]} b6 {[%emt 0:01:09]} 12. Qc2 {[%emt 0:00:41]} Nc6 {[%emt 0:02:19]} 13. Nxd7 {[%emt 0:00:34]} Qxd7 {[%emt 0:00:04]} 14. cxd5 {[%emt 0:00:06]} exd5 {[%emt 0:02:08]} 15. Nxd5 {[%emt 0:00:13]} Nxd5 {[%emt 0:00:19]} 16. Qxc6 {[%emt 0:00:02]} Qxc6 {[%emt 0:00:05]} 17. Rxc6 {[%emt 0:00:00]} Kd7 {[%emt 0:01:29]} 18. Rc1 {[%emt 0:00:02]} a5 {[%emt 0:00:10]} 19. Bb5+ {[%emt 0:00:22]} Kd8 {[%emt 0:01:01]} 20. Bc6 {[%emt 0:00:04]} 1-0

[Event "African Games-chT 2019"]
[Site "Casablanca"]
[Date "2019.08.24"]
[Round "1"]
[White "Rania, Sbai"]
[Black "Mentile, Lishen"]
[Result "1-0"]
[ECO "D15"]
[WhiteElo "1853"]
[BlackElo "1513"]
[Annotator "NA"]
[PlyCount "67"]
[EventDate "2019.08.24"]
[EventType "team-tourn"]
[EventCountry "MAR"]
[SourceTitle "playchess.com"]
[Source "ChessBase"]
[SourceQuality "1"]
[WhiteTeam "Morocco"]
[BlackTeam "Namibia"]
[WhiteTeamCountry "MAR"]
[BlackTeamCountry "NAM"]
[TimeControl "900+10"]

1. d4 {[%emt 0:00:00]} d5 {[%emt 0:00:00]} 2. c4 {[%emt 0:00:06]} c6 {[%emt 0:00:49]} 3. Nc3 {[%emt 0:00:06]} Nf6 {[%emt 0:00:02]} 4. Nf3 {[%emt 0:00:21]} h6 {[%emt 0:00:11]} 5. e3 {[%emt 0:00:21]} Bg4 {[%emt 0:00:06]} 6. cxd5 {[%emt 0:02:10]} Nxd5 {[%emt 0:00:17]} 7. e4 {[%emt 0:01:14]} Nf6 {[%emt 0:00:53]} 8. Be3 {[%emt 0:00:51]} e6 {[%emt 0:00:02]} 9. Be2 {[%emt 0:00:59]} Bb4 {[%emt 0:00:13]} 10. Qc2 {[%emt 0:00:06]} Nbd7 {[%emt 0:01:46]} 11. O-O {[%emt 0:00:26]} O-O {[%emt 0:00:10]} 12. Rfd1 {[%emt 0:01:58]} Qc7 {[%emt 0:00:00]} 13. a3 {[%emt 0:00:55]} Bxc3 {[%emt 0:01:41]} 14. bxc3 {[%emt 0:00:03]} Rad8 {[%emt 0:01:42]} 15. Rab1 {[%emt 0:02:04]} b6 {[%emt 0:00:16]} 16. c4 {[%emt 0:00:42]} e5 {[%emt 0:01:36]} 17. d5 {[%emt 0:02:04]} cxd5 {[%emt 0:00:33]} 18. exd5 {[%emt 0:00:01]} Nc5 {[%emt 0:01:17]} 19. Bxc5 {[%emt 0:00:23]} Qxc5 {[%emt 0:00:02]} 20. Ne1 {[%emt 0:01:54]} Bxe2 {[%emt 0:01:01]} 21. Qxe2 {[%emt 0:00:02]} Rfe8 {[%emt 0:00:11]} 22. Nc2 {[%emt 0:00:07]} Rc8 {[%emt 0:01:17]} 23. Ne3 {[%emt 0:00:05]} Qxa3 {[%emt 0:00:41]} 24. Ra1 {[%emt 0:00:04]} Qe7 {[%emt 0:00:02]} 25. d6 {[%emt 0:00:13]} Qd7 {[%emt 0:00:01]} 26. Qa2 {[%emt 0:00:11]} a5 {[%emt 0:00:38]} 27. Qb3 {[%emt 0:01:02]} Rc6 {[%emt 0:00:01]} 28. c5 {[%emt 0:00:40]} bxc5 {[%emt 0:00:55]} 29. Nc4 {[%emt 0:00:09]} Ne4 {[%emt 0:00:10]} 30. Qd3 {[%emt 0:00:02]} Nf6 {[%emt 0:01:00]} 31. Nxa5 {[%emt 0:00:23]} Rb6 {[%emt 0:00:38]} 32. Rac1 {[%emt 0:00:17]} Rc8 {[%emt 0:00:22]} 33. Nc4 {[%emt 0:00:00]} Ne8 {[%emt 0:01:13]} 34. Nxb6 {[%emt 0:00:07]} 1-0

[Event "African Games-chT 2019"]
[Site "Casablanca"]
[Date "2019.08.24"]
[Round "1"]
[White "Naipal, Hoolan"]
[Black "Kayonde, Andrew"]
[Result "0-1"]
[ECO "B18"]
[WhiteElo "1785"]
[BlackElo "2384"]
[Annotator "NA"]
[PlyCount "58"]
[EventDate "2019.08.24"]
[EventType "team-tourn"]
[EventCountry "MAR"]
[SourceTitle "playchess.com"]
[Source "ChessBase"]
[SourceQuality "1"]
[WhiteTeam "Mauritius"]
[BlackTeam "Zambia"]
[WhiteTeamCountry "MRI"]
[BlackTeamCountry "ZAM"]
[TimeControl "900+10"]

1. e4 {[%emt 0:00:00]} c6 {[%emt 0:00:00]} 2. d4 {[%emt 0:00:03]} d5 {[%emt 0:00:00]} 3. Nc3 {[%emt 0:00:15]} dxe4 {[%emt 0:00:04]} 4. Nxe4 {[%emt 0:00:05]} Bf5 {[%emt 0:00:04]} 5. Ng3 {[%emt 0:00:04]} Bg6 {[%emt 0:00:03]} 6. Nh3 {[%emt 0:00:19]} e6 {[%emt 0:00:04]} 7. Nf4 {[%emt 0:00:24]} Bd6 {[%emt 0:00:04]} 8. h4 {[%emt 0:01:34]} Qc7 {[%emt 0:00:11]} 9. Nxg6 {[%emt 0:01:50]} hxg6 {[%emt 0:00:05]} 10. Ne4 {[%emt 0:00:44]} Nf6 {[%emt 0:00:40]} 11. Bd3 {[%emt 0:04:41]} Nxe4 {[%emt 0:01:27]} 12. Bxe4 {[%emt 0:00:03]} Nd7 {[%emt 0:00:03]} 13. Be3 {[%emt 0:01:20]} Nf6 {[%emt 0:01:15]} 14. Bf3 {[%emt 0:00:04]} Bf4 {[%emt 0:00:07]} 15. Qd2 {[%emt 0:00:51]} Bxe3 {[%emt 0:00:11]} 16. Qxe3 {[%emt 0:01:04]} Qa5+ {[%emt 0:00:17]} 17. c3 {[%emt 0:00:54]} g5 {[%emt 0:00:46]} 18. Qe5 {[%emt 0:01:20]} Qxe5+ {[%emt 0:00:10]} 19. dxe5 {[%emt 0:00:01]} Nd7 {[%emt 0:00:02]} 20. O-O-O {[%emt 0:00:06]} gxh4 {[%emt 0:00:14]} 21. g3 {[%emt 0:00:43]} Nxe5 {[%emt 0:00:06]} 22. Be2 {[%emt 0:00:01]} g5 {[%emt 0:03:06]} 23. gxh4 {[%emt 0:00:38]} gxh4 {[%emt 0:00:02]} 24. Rh3 {[%emt 0:00:07]} Ke7 {[%emt 0:00:08]} 25. Rdh1 {[%emt 0:00:08]} Ng6 {[%emt 0:00:03]} 26. Bd3 {[%emt 0:00:20]} Nf4 {[%emt 0:00:04]} 27. Rf3 {[%emt 0:00:17]} e5 {[%emt 0:00:12]} 28. Re1 {[%emt 0:00:26]} Kf6 {[%emt 0:00:11]} 29. Bf1 {[%emt 0:01:01]} h3 {[%emt 0:00:10]} 0-1